bitfinex-derivatives/quotes_ETHF0:USTF0_20250309
["timestamp","ask_amount","ask_price","bid_price","bid_amount"]
[1741494778295,1.00413,2185.7,2185.4,0.617]
[1741494778497,6.95241,2185.8,2185.4,1.76048]
[1741494778796,0.54912,2185.7,2185.4,1.76048]
[1741494779185,0.54912,2185.7,2185.4,1.2113]
[1741494779991,6.9524,2185.8,2185.4,1.76048]
[1741494780189,0.6217,2186.0,2185.4,4.4191]
[1741494780391,0.54906,2186.0,2185.6,0.54912]
[1741494780697,1.963,2186.1,2185.6,0.54914]
[1741494780895,0.54907,2185.9,2185.6,0.54914]
[1741494781702,0.54905,2186.0,2185.6,0.54914]
[1741494781898,5.0231,2186.2,2185.4,5.79208]
[1741494782100,7.5351,2186.2,2185.9,0.54907]
[1741494782300,7.5351,2186.2,2186.0,1.2029]
[1741494782793,11.86842561,2186.4,2186.0,1.2029]
[1741494782994,13.83142561,2186.4,2186.0,0.5928]
[1741494783390,0.54901,2186.2,2186.0,0.5928]
[1741494783591,0.6215,2186.1,2186.0,0.5928]
[1741494784304,13.83142561,2186.4,2186.0,0.5928]
[1741494784493,1.17048,2186.3,2186.0,1.14184]
[1741494785199,0.549,2186.2,2186.0,0.5928]
[1741494786600,0.54899,2186.2,2186.0,0.5928]
[1741494786995,3.2078,2186.2,2185.8,0.6509]
[1741494787198,1.84112,2186.1,2185.8,1.84007]
[1741494790205,0.6421,2186.1,2185.9,0.54907]
[1741494790508,0.6421,2186.1,2185.9,1.17186]
[1741494791405,3.7568,2186.2,2185.9,0.6228]
[1741494791603,4.3974,2186.2,2185.9,0.6228]
[1741494791809,0.54905,2186.0,2185.8,1.291]
[1741494792309,3.8484,2186.2,2185.8,1.291]
[1741494792501,4.39741,2186.2,2185.9,0.54905]
[1741494792704,3.8484,2186.2,2185.9,0.54905]
[1741494793008,3.2078,2186.2,2185.8,1.291]
[1741494793206,3.2078,2186.2,2186.0,0.54903]
[1741494793403,3.2078,2186.2,2185.9,0.6286]
[1741494793605,0.6215,2186.3,2186.0,0.54902]
[1741494794207,1.17048,2186.3,2186.0,0.54902]
[1741494794811,1.17048,2186.3,2185.9,1.17765]
[1741494795224,1.17048,2186.3,2185.9,0.6286]
[1741494795429,1.17048,2186.3,2186.0,0.54904]
[1741494796225,4.37828,2186.3,2186.0,0.54904]
[1741494796423,3.8293,2186.3,2186.1,0.54901]
[1741494796612,3.2078,2186.3,2186.2,0.6244]
[1741494796817,3.2078,2186.3,2186.2,1.2762]
[1741494797017,14.98778561,2186.4,2186.2,1.2762]
[1741494797221,13.83142561,2186.4,2186.2,1.82519]
[1741494797426,11.86842561,2186.4,2186.2,1.82517]
[1741494797624,11.86842561,2186.4,2186.3,0.6058]
[1741494801328,11.86842561,2186.4,2186.2,1.82517]
[1741494801528,3.2078,2186.3,2186.2,1.82517]
[1741494801727,3.2078,2186.3,2186.2,2.17078784]
[1741494802024,3.75677,2186.3,2186.2,0.6244]
[1741494802331,3.2078,2186.3,2186.0,0.00685354]
[1741494802624,1.7716,2186.2,2186.0,0.00685354]
[1741494802827,1.2226,2186.2,2186.0,0.00685354]
[1741494803019,0.6391,2186.1,2186.0,0.00685354]
[1741494803222,1.18812,2186.1,2186.0,0.00685354]
[1741494808127,0.6391,2186.1,2186.0,0.00685354]
[1741494808532,1.18812,2186.1,2186.0,0.00685354]
[1741494808832,0.6391,2186.1,2186.0,0.00685354]
[1741494809523,1.18812,2186.1,2186.0,0.00685354]
[1741494810218,0.6391,2186.1,2186.0,0.00685354]
[1741494810933,1.18812,2186.1,2186.0,0.00685354]
[1741494811127,0.6391,2186.1,2186.0,0.00685354]
[1741494811327,1.18812,2186.1,2186.0,0.00685354]
[1741494812935,0.6391,2186.1,2186.0,0.00685354]
[1741494813532,1.18812,2186.1,2186.0,0.00685354]
[1741494820538,0.6391,2186.1,2186.0,0.00685354]
[1741494820737,1.18812,2186.1,2186.0,0.00685354]
[1741494821537,1.18812,2186.1,2186.0,0.62095354]
[1741494822344,0.5902,2186.2,2186.0,0.62095354]
[1741494822645,0.5902,2186.2,2186.1,0.6422]
[1741494823646,0.54898,2186.3,2186.1,0.6422]
[1741494825547,0.54897,2186.3,2186.1,0.6422]
[1741494826145,0.54899,2186.2,2186.1,0.6422]
[1741494828342,0.54902,2186.1,2186.0,0.62095354]
[1741494832249,3.2078,2186.3,2186.0,0.62095354]
[1741494832447,0.54901,2186.2,2186.0,0.62095354]
[1741494833046,0.54902,2186.1,2186.0,0.62095354]
[1741494836648,0.54902,2186.1,2186.0,0.00685354]
[1741494848360,0.54901,2186.2,2186.0,0.00685354]
[1741494848965,3.2078,2186.3,2186.1,0.54901]
[1741494849160,1.962,2186.7,2186.1,1.2206]
[1741494849365,1.962,2186.7,2186.2,1.14229]
[1741494849366,0.54892,2186.5,2186.2,1.14229]
[1741494849561,0.54891,2186.6,2186.2,0.5933]
[1741494849859,1.201,2186.8,2186.2,0.5933]
[1741494850162,1.201,2186.8,2186.3,3.75676]
[1741494850163,0.54889,2186.7,2186.3,3.75676]
[1741494850353,0.00685354,2186.7,2186.3,3.2078]
[1741494850553,0.00685354,2186.7,2186.4,1.17013]
[1741494850761,0.55572354,2186.7,2186.5,0.6189]
[1741494850960,0.55572354,2186.7,2186.6,0.6108]
[1741494851159,0.00685354,2186.7,2186.6,0.6108]
[1741494851356,0.55572354,2186.7,2186.6,0.6108]
[1741494853463,0.00685354,2186.7,2186.6,0.6108]
[1741494854957,0.55572354,2186.7,2186.6,0.6108]
[1741494855358,0.00685354,2186.7,2186.6,0.6108]
[1741494855662,0.00685354,2186.7,2186.6,1.15969]
[1741494855862,0.00685354,2186.7,2186.6,0.6108]
[1741494857760,0.00685354,2186.7,2186.6,1.15969]
[1741494858164,0.00685354,2186.7,2186.6,0.6108]
[1741494858366,0.00685354,2186.7,2186.6,1.15969]
[1741494859164,0.54878,2187.1,2186.6,3.8186]
[1741494859465,0.54878,2187.1,2186.7,0.54884]
[1741494859668,0.54878,2187.1,2186.7,0.6254]
[1741494859875,0.54878,2187.1,2186.8,0.54883]
[1741494860066,0.54878,2187.1,2186.9,0.6384]
[1741494860272,0.54878,2187.1,2186.9,0.9971041]
[1741494860463,0.54878,2187.1,2187.0,0.6254]
[1741494862270,0.54885,2186.8,2186.6,3.8186]
[1741494862465,0.54885,2186.8,2186.6,4.4543]
[1741494862770,0.54883,2186.9,2186.6,4.4543]
[1741494863073,0.54883,2186.9,2186.6,5.00318]
[1741494863770,0.54881,2187.0,2186.6,5.36540573]
[1741494864669,0.00685354,2187.2,2187.1,0.54877]
[1741494865871,3.2078,2187.6,2187.0,1.8978]
[1741494866072,3.2078,2187.6,2187.3,0.5487]
[1741494866269,3.2078,2187.6,2187.4,1.288]
[1741494867472,3.2078,2187.6,2187.4,1.83668]
[1741494868072,3.2078,2187.6,2187.4,1.288]
[1741494868377,0.54867,2187.5,2187.4,0.6458]
[1741494868668,0.54867,2187.5,2187.3,0.00685354]
[1741494868669,0.6105,2187.5,2187.3,0.00685354]
[1741494868874,1.15918,2187.5,2187.3,0.00685354]
[1741494869075,0.6105,2187.5,2187.3,0.00685354]
[1741494869275,0.6105,2187.5,2187.3,0.3497791]
[1741494869276,1.15918,2187.5,2187.3,0.3497791]
[1741494869476,0.6105,2187.5,2187.3,0.00685354]
[1741494869772,1.15918,2187.5,2187.3,0.00685354]
[1741494870772,0.6105,2187.5,2187.3,0.00685354]
[1741494870973,1.15918,2187.5,2187.3,0.00685354]
[1741494871574,0.6105,2187.5,2187.3,0.00685354]
[1741494871775,1.15918,2187.5,2187.3,0.00685354]
[1741494872180,0.54869,2187.4,2187.3,0.00685354]
[1741494872476,1.13939,2187.4,2187.3,0.00685354]
[1741494873573,1.13939,2187.4,2187.3,0.35461289]
[1741494873876,0.5907,2187.4,2187.3,0.35461289]
[1741494875677,0.5907,2187.4,2187.3,0.90333289]
[1741494875874,0.6105,2187.5,2187.3,0.90333289]
[1741494876071,0.6105,2187.5,2187.3,1.50873289]
[1741494876674,3.2078,2187.6,2187.4,0.54869]
[1741494877077,3.2078,2187.6,2187.5,0.6299]
[1741494879575,3.2078,2187.6,2187.5,1.17857]
[1741494881796,1.2071,2187.9,2187.7,0.54861]
[1741494881997,3.8198,2188.2,2187.6,0.5994]
[1741494882293,0.54852,2188.1,2187.8,0.54857]
[1741494882495,1.18632,2188.1,2187.8,0.54857]
[1741494882794,1.18632,2188.1,2187.8,1.15297]
[1741494883796,0.6228,2188.0,2187.8,1.15297]
[1741494884897,0.6228,2188.0,2187.8,0.6044]
[1741494885092,1.17135,2188.0,2187.8,0.6044]
[1741494885287,1.17135,2188.0,2187.8,1.15299]
[1741494885288,0.6228,2188.0,2187.8,1.15299]
[1741494887193,0.6378,2188.1,2187.8,3.8122]
[1741494887595,0.6378,2188.1,2188.0,0.54854]
[1741494887893,0.6378,2188.1,2187.8,3.8122]
[1741494888094,0.6143,2188.4,2187.8,3.8122]
[1741494888095,1.16275,2188.4,2187.8,3.8122]
[1741494888295,1.16275,2188.4,2188.1,0.54851]
[1741494888495,1.16275,2188.4,2188.2,1.1991]
[1741494888799,0.6143,2188.4,2188.2,1.74759]
[1741494889302,0.6143,2188.4,2188.2,1.1991]
[1741494889703,0.6143,2188.4,2188.2,1.8381]
[1741494890002,3.75623,2188.5,2188.2,1.8381]
[1741494890205,4.36133,2188.5,2188.2,1.8381]
[1741494890405,4.36133,2188.5,2188.2,2.38659]
[1741494891205,0.54844,2188.4,2188.2,1.8381]
[1741494892306,3.8129,2188.5,2188.0,0.36267191]
[1741494892600,0.5485,2188.2,2188.0,0.54853]
[1741494893105,0.5485,2188.2,2188.0,0.90882162]
[1741494893307,0.5485,2188.2,2188.0,0.36029162]
[1741494893503,0.5485,2188.2,2187.8,3.8154]
[1741494893700,0.5485,2188.2,2187.8,7.0232]
[1741494893901,0.5485,2188.2,2187.9,0.54856]
[1741494894604,0.5485,2188.2,2187.8,7.0232]
[1741494895000,0.5485,2188.2,2187.9,0.54855]
[1741494895400,0.5485,2188.2,2187.9,0.91016177]
[1741494895809,0.54852,2188.1,2187.9,0.91016177]
[1741494896401,0.54852,2188.1,2187.9,0.36161177]
[1741494896705,0.54852,2188.1,2187.8,7.57177]
[1741494897206,3.2078,2188.4,2187.8,5.43720653]
[1741494897507,0.54856,2188.0,2187.8,5.43720653]
[1741494897898,1.8661,2188.2,2187.8,5.43720653]
[1741494898103,0.54855,2188.0,2187.8,5.43720653]
[1741494899195,0.54856,2187.9,2187.8,5.43720653]
[1741494899806,0.54856,2187.9,2187.8,4.82320653]
[1741494900006,0.54856,2187.9,2187.8,4.4492]
[1741494900706,0.54856,2187.9,2187.8,4.82175934]
[1741494901206,0.54856,2187.9,2187.8,4.4492]
[1741494901410,0.54856,2188.0,2187.8,4.4492]
[1741494902007,0.54856,2188.0,2187.8,4.80778837]
[1741494903108,0.54856,2187.9,2187.8,3.8041]
[1741494903307,1.15826,2187.9,2187.8,3.2078]
[1741494906610,1.15826,2187.9,2187.7,20.89266163]
[1741494907919,0.6097,2187.9,2187.7,21.44126163]
[1741494908119,1.15827,2187.9,2187.7,20.89266163]
[1741494908517,0.6097,2187.9,2187.7,20.89266163]
[1741494908714,1.15827,2187.9,2187.7,20.89266163]
[1741494910111,1.15827,2187.9,2187.7,20.522]
[1741494910316,1.15827,2187.9,2187.7,20.89255161]
[1741494910522,1.15827,2187.9,2187.7,20.522]
[1741494910721,0.6097,2187.9,2187.7,20.522]
[1741494910916,1.17779,2187.8,2187.7,20.522]
[1741494911121,4.4758,2187.8,2187.3,0.35461289]
[1741494911313,0.54869,2187.4,2187.3,0.35461289]
[1741494911518,0.54869,2187.5,2187.3,0.35461289]
[1741494911713,1.2466,2187.4,2187.3,0.35461289]
[1741494912013,1.79529,2187.4,2187.3,0.35461289]
[1741494914016,1.79529,2187.4,2187.3,0.00685354]
[1741494914419,3.75529,2187.4,2187.3,0.00685354]
[1741494915018,4.40479,2187.4,2187.3,0.00685354]
[1741494924538,7.61259,2187.4,2187.3,0.00685354]
[1741494927933,3.2078,2187.4,2187.3,0.00685354]
[1741494928238,3.75649,2187.4,2187.3,0.00685354]
[1741494932244,0.54869,2187.4,2187.3,0.00685354]
[1741494932940,6.3981,2187.7,2187.3,0.62505354]
[1741494933142,0.54869,2187.4,2187.3,0.62505354]
[1741494937543,1.96,2187.6,2187.3,1.17376354]
[1741494937746,4.4381,2187.7,2187.3,1.17376354]
[1741494937747,0.54867,2187.5,2187.4,0.5996]
[1741494937941,0.54867,2187.5,2187.4,1.2092]
[1741494938141,0.54866,2187.6,2187.4,1.2092]
[1741494938341,0.54867,2187.5,2187.4,1.2092]
[1741494944446,3.2078,2187.7,2187.4,1.2092]
[1741494944748,3.75642,2187.7,2187.4,1.75787]
[1741494945653,0.54865,2187.6,2187.4,1.2092]
[1741494946756,3.75643,2187.7,2187.4,1.75788]
[1741494947056,0.54864,2187.6,2187.4,1.2092]
[1741494947452,3.2078,2187.7,2187.4,1.2092]
[1741494947653,3.75642,2187.7,2187.4,1.75788]
[1741494948054,3.2078,2187.7,2187.4,1.75788]
[1741494948254,0.54864,2187.6,2187.4,1.2092]
[1741494948455,3.2078,2187.7,2187.4,1.2092]
[1741494948757,3.2078,2187.7,2187.4,1.75787]
[1741494949649,3.75642,2187.7,2187.4,1.75787]
[1741494949850,3.2078,2187.7,2187.4,1.2092]
[1741494950059,3.2078,2187.7,2187.5,0.54866]
[1741494950557,3.75642,2187.7,2187.4,1.75787]
[1741494951058,3.75642,2187.7,2187.4,1.2092]
[1741494951560,3.75642,2187.7,2187.4,1.75787]
[1741494954052,3.2078,2187.7,2187.4,1.2092]
[1741494954252,3.75642,2187.7,2187.4,1.75787]
[1741494955758,3.2078,2187.7,2187.4,1.2092]
[1741494956061,3.2078,2187.7,2187.5,0.54866]
[1741494956259,3.2078,2187.7,2187.4,1.2092]
[1741494956461,3.2078,2187.7,2187.6,0.54864]
[1741494956961,3.2078,2187.7,2187.4,1.2092]
[1741494957154,3.2078,2187.7,2187.5,0.54867]
[1741494957759,3.2078,2187.7,2187.4,1.2092]
[1741494957959,3.2078,2187.7,2187.6,0.54864]
[1741494958861,0.6196,2187.9,2187.8,0.54859]
[1741494961160,0.6196,2187.9,2187.7,0.5486]
[1741494961954,0.6196,2187.9,2187.8,0.54859]
[1741494963562,0.6278,2188.0,2187.5,3.2078]
[1741494964359,0.6278,2188.0,2187.9,0.54856]
[1741494964560,0.6278,2188.0,2187.8,0.54857]
[1741494965863,0.6344,2188.3,2188.2,0.54849]
[1741494966069,0.63,2188.3,2188.2,0.54849]
[1741494967163,3.2078,2188.4,2188.3,0.54846]
[1741494967764,3.2078,2188.4,2188.3,1.16436]
[1741494967960,3.2078,2188.4,2188.3,1.80056]
[1741494968167,3.2078,2188.4,2188.3,2.16426368]
[1741494968470,0.63,2188.5,2188.4,0.54844]
[1741494969070,3.2078,2188.8,2188.6,0.54837]
[1741494969266,3.2078,2188.8,2188.7,0.6533]
[1741494969468,3.8562,2188.8,2188.7,0.6533]
[1741494970962,5.05454,2188.8,2188.7,0.6533]
[1741494971373,4.5062,2188.8,2188.7,0.6533]
[1741494972367,4.5062,2188.8,2188.5,0.55525354]
[1741494972368,0.54839,2188.6,2188.5,0.00685354]
[1741494972872,0.54839,2188.6,2188.2,0.54849]
[1741494972873,0.6275,2188.7,2188.1,0.35054709]
[1741494973072,0.54848,2188.3,2188.0,0.6479]
[1741494973269,0.6069,2188.2,2188.1,0.54851]
[1741494974362,0.6069,2188.2,2187.9,3.21465354]
[1741494974566,1.17602,2188.1,2187.9,3.21465354]
[1741494974870,0.54854,2188.0,2187.9,3.21465354]
[1741494975575,1.17602,2188.1,2187.9,3.76321354]
[1741494976170,0.6342,2188.0,2187.9,3.76321354]
[1741494978471,1.18274,2188.0,2187.9,3.21465354]
[1741494978786,1.18274,2188.0,2187.9,0.00685354]
[1741494978976,0.6342,2188.0,2187.9,0.00685354]
[1741494979685,0.6342,2188.0,2187.9,0.55541354]
[1741494979876,0.6342,2188.0,2187.9,0.00685354]
[1741494980782,1.18274,2188.0,2187.9,0.00685354]
[1741494981479,0.6342,2188.0,2187.9,0.00685354]
[1741494981680,1.18274,2188.0,2187.9,0.00685354]
[1741494984778,1.18274,2188.0,2187.3,20.518]
[1741494984779,4.6342,2188.0,2187.3,20.518]
[1741494984988,0.54869,2187.4,2187.3,20.518]
[1741494985974,0.54874,2187.2,2187.1,3.21465354]
[1741494986686,1.15004,2187.2,2187.1,3.21465354]
[1741494987885,1.77234,2187.2,2187.1,3.21465354]
[1741494990182,1.77234,2187.2,2187.1,0.00685354]
[1741494991988,1.17104,2187.2,2187.1,0.00685354]
[1741495001094,3.2078,2188.6,2187.1,16.32267559]
[1741495001292,3.2078,2189.0,2188.3,0.54846]
[1741495001491,3.2078,2189.0,2188.2,3.2078]
[1741495001697,3.2078,2189.0,2188.6,3.2078]
[1741495002000,0.54834,2188.8,2188.4,0.54843]
[1741495002597,0.54834,2188.8,2188.6,3.2078]
[1741495002598,0.00685354,2188.8,2188.6,3.2078]
[1741495002790,0.54837,2188.7,2188.6,3.2078]
[1741495003097,0.55520354,2188.8,2188.6,3.2078]
[1741495003999,0.00685354,2188.8,2188.4,0.00685354]
[1741495004200,0.00685354,2188.8,2188.5,0.54839]
[1741495005404,0.00685354,2188.8,2188.6,0.54837]
[1741495006403,0.00685354,2188.8,2188.7,0.54836]
[1741495006607,0.00685354,2188.8,2188.6,0.54838]
[1741495006808,0.00685354,2188.8,2188.7,0.54836]
[1741495007309,0.00685354,2188.8,2188.6,3.75618]
[1741495009309,0.00685354,2188.8,2188.6,3.75619]
[1741495010414,0.55519354,2188.8,2188.6,3.2078]
[1741495010609,0.54836,2188.7,2188.6,3.2078]
[1741495021217,0.54841,2188.5,2188.4,0.94338058]
[1741495024917,0.54841,2188.6,2188.4,0.94338058]
[1741495025123,0.6174,2188.7,2188.4,0.94338058]
[1741495025424,0.54841,2188.5,2188.4,0.94338058]
[1741495028132,0.00685354,2188.8,2188.4,0.94338058]
[1741495028425,0.54838,2188.7,2188.5,0.54841]
[1741495029433,0.5484,2188.6,2188.4,1.49180058]
[1741495030421,1.97985354,2188.8,2188.4,1.49180058]
[1741495030422,0.55520354,2188.8,2188.4,0.94338058]
[1741495030731,0.55520354,2188.8,2188.5,3.2078]
[1741495030922,0.00685354,2188.8,2188.6,0.6221]
[1741495031127,0.55519354,2188.8,2188.7,0.6059]
[1741495032227,0.00685354,2188.8,2188.7,0.6059]
[1741495032423,0.55519354,2188.8,2188.7,0.6059]
[1741495032622,0.00685354,2188.8,2188.7,0.6059]
[1741495034131,0.00685354,2188.8,2188.7,1.15426]
[1741495034331,0.55519354,2188.8,2188.7,0.6059]
[1741495034524,0.00685354,2188.8,2188.7,0.6059]
[1741495035223,0.55519354,2188.8,2188.7,0.6059]
[1741495040131,0.00685354,2188.8,2188.7,0.6059]
[1741495040830,0.00685354,2188.8,2188.7,1.15426]
[1741495041033,0.55519354,2188.8,2188.7,1.15426]
[1741495041631,0.55519354,2188.8,2188.7,0.6059]
[1741495047436,0.00685354,2188.8,2188.6,0.6221]
[1741495047637,0.54836,2188.7,2188.6,0.6221]
[1741495049143,0.54836,2188.7,2188.5,3.8428]
[1741495049144,0.00685354,2188.8,2188.5,3.8428]
[1741495049340,0.54839,2188.6,2188.5,3.8428]
[1741495049941,0.54839,2188.6,2188.5,4.39121]
[1741495050450,0.54839,2188.6,2188.5,3.8428]
[1741495050644,0.60025354,2188.8,2188.4,0.35278058]
[1741495050849,1.17011,2188.5,2188.4,0.35278058]
[1741495052750,0.54841,2188.5,2188.4,0.35278058]
[1741495052945,2.5847,2188.7,2188.4,0.35278058]
[1741495053144,0.54841,2188.5,2188.4,0.35278058]
[1741495053547,0.54841,2188.5,2188.4,0.95528058]
[1741495054051,0.54841,2188.5,2188.4,1.59188058]
[1741495060849,2.5837,2188.7,2188.4,1.59188058]
[1741495061055,3.21465354,2188.8,2188.5,3.2078]
[1741495061257,0.55519354,2188.8,2188.6,1.17748]
[1741495063164,0.00685354,2188.8,2188.6,0.6291]
[1741495063358,0.54836,2188.7,2188.6,0.6291]
[1741495066066,0.55521354,2188.8,2188.6,0.6291]
[1741495069770,0.55521354,2188.8,2188.6,1.17748]
[1741495070769,0.54836,2188.7,2188.6,1.17748]
[1741495071463,0.54836,2188.7,2188.6,0.6291]
[1741495073971,1.16616,2188.7,2188.6,0.6291]
[1741495074176,0.00685354,2188.8,2188.6,1.17749]
[1741495074371,0.55520354,2188.8,2188.6,1.17749]
[1741495075166,0.00685354,2188.8,2188.6,1.17749]
[1741495075370,0.55521354,2188.8,2188.6,0.6291]
[1741495076666,0.55521354,2188.8,2188.6,1.17749]
[1741495077173,0.55519354,2188.8,2188.6,1.17749]
[1741495077679,0.00685354,2188.8,2188.7,0.54836]
[1741495077866,0.00685354,2188.8,2188.6,1.17748]
[1741495078170,0.00685354,2188.8,2188.6,0.6291]
[1741495078472,0.00685354,2188.8,2188.7,0.54836]
[1741495085284,0.6366,2189.2,2188.6,0.6291]
[1741495085484,0.5483,2189.0,2188.8,3.75613]
[1741495086181,1.14838,2189.1,2188.8,3.75613]
[1741495087778,1.14838,2189.1,2188.9,0.5939]
[1741495087979,0.6366,2189.2,2188.9,0.5939]
[1741495088178,1.18485,2189.2,2189.0,1.2511]
[1741495088379,1.18485,2189.2,2189.0,1.79939]
[1741495088579,0.6366,2189.2,2189.0,1.2511]
[1741495088783,0.54825,2189.2,2189.0,1.79939]
[1741495089181,0.54825,2189.2,2189.0,1.2511]
[1741495089377,0.6195,2189.2,2189.0,1.2511]
[1741495089577,0.54826,2189.1,2189.0,1.2511]
[1741495089782,0.54829,2189.0,2188.8,3.75613]
[1741495089984,1.16119,2189.0,2188.8,3.75613]
[1741495090279,0.54831,2188.9,2188.8,3.2078]
[1741495090487,1.16941,2188.9,2188.8,3.2078]
[1741495090787,1.81011,2188.9,2188.8,3.2078]
[1741495092087,1.81011,2188.9,2188.7,1.8778]
[1741495092283,0.54834,2188.8,2188.7,0.601]
[1741495092489,0.54834,2188.8,2188.5,4.9947]
[1741495092689,0.54834,2188.8,2188.5,5.6395]
[1741495093490,0.54834,2188.8,2188.6,0.54838]
[1741495093783,0.54834,2188.8,2188.5,5.6395]
[1741495094386,0.54836,2188.7,2188.5,5.6395]
[1741495094786,0.54835,2188.8,2188.5,5.6395]
[1741495095989,0.54836,2188.7,2188.5,5.6395]
[1741495096982,3.2078,2189.0,2188.8,0.54832]
[1741495097198,1.959,2189.2,2188.9,1.9068]
[1741495097396,0.54829,2189.0,2188.9,1.9068]
[1741495097888,2.5946,2189.2,2188.9,1.9068]
[1741495098088,0.54829,2189.0,2188.9,1.9068]
[1741495098991,0.54828,2189.1,2188.9,2.45511]
[1741495099293,24.74732635,2189.9,2188.9,8.8918]
[1741495099481,25.29540635,2189.9,2189.5,3.2078]
[1741495099686,25.29540635,2189.9,2189.6,1.8694]
[1741495100387,25.29540635,2189.9,2189.6,2.41753]
[1741495100985,24.74732635,2189.9,2189.6,2.41753]
[1741495101293,25.29539635,2189.9,2189.6,2.41753]
[1741495102289,24.74732635,2189.9,2189.7,0.5481]
[1741495102593,21.53952635,2189.9,2189.6,1.8694]
[1741495102795,21.53952635,2189.9,2189.7,0.54809]
[1741495103289,0.54802,2190.1,2189.7,0.54809]
[1741495103795,0.54807,2189.9,2189.6,2.75868053]
[1741495103990,3.2078,2190.2,2189.6,2.21055053]
[1741495104185,0.54806,2190.0,2189.7,0.54811]
[1741495105897,0.54806,2190.0,2189.6,2.21055053]
[1741495106199,0.54806,2190.0,2189.7,0.54811]
[1741495107297,0.6154,2190.1,2189.6,2.21055053]
[1741495107499,0.6154,2190.1,2189.6,2.75868053]
[1741495107795,0.54808,2189.9,2189.6,2.75868053]
[1741495110493,0.5481,2189.8,2189.6,2.21055053]
[1741495110695,0.54811,2189.7,2189.6,0.95285053]
[1741495110896,0.5481,2189.8,2189.6,0.95285053]
[1741495112998,3.2078,2190.2,2189.6,0.95285053]
[1741495113292,0.548,2190.2,2189.9,0.54805]
[1741495113501,0.54801,2190.1,2190.0,0.5979]
[1741495113894,0.548,2190.2,2190.0,0.5979]
[1741495114097,1.74437,2190.3,2190.0,1.74072]
[1741495114996,1.74437,2190.3,2190.1,3.2078]
[1741495117808,0.54797,2190.3,2190.1,3.2078]
[1741495118400,0.54799,2190.2,2190.1,3.2078]
[1741495123005,0.54799,2190.2,2189.8,5.1818]
[1741495123300,0.54805,2190.0,2189.8,5.72987]
[1741495123505,0.6452,2190.1,2189.8,3.2078]
[1741495123702,0.54806,2189.9,2189.8,3.2078]
[1741495124708,0.54806,2189.9,2189.8,3.75589]
[1741495125101,0.54806,2189.9,2189.8,3.2078]
[1741495126008,1.17675,2190.0,2189.8,3.2078]
[1741495126200,1.17675,2190.0,2189.8,3.75587]
[1741495126508,0.54805,2190.0,2189.8,3.75587]
[1741495126705,0.6025,2190.2,2189.8,3.75587]
[1741495126900,0.54806,2190.0,2189.8,3.2078]
[1741495127103,0.54806,2189.9,2189.8,3.2078]
[1741495131712,0.54806,2190.0,2189.8,3.2078]
[1741495131914,0.6025,2190.2,2189.8,3.2078]
[1741495132103,0.54804,2190.1,2189.8,3.75588]
[1741495132306,0.6025,2190.2,2189.8,3.2078]
[1741495132508,0.54806,2190.0,2189.8,3.2078]
[1741495133104,0.54806,2189.9,2189.8,3.2078]
[1741495134807,0.6025,2190.2,2189.8,3.2078]
[1741495135010,0.54806,2190.0,2189.8,3.2078]
[1741495135718,0.54806,2190.0,2189.8,3.75589]
[1741495140312,0.54796,2190.4,2190.1,0.548]
[1741495140513,3.2078,2190.6,2190.2,0.6448]
[1741495140711,0.54796,2190.3,2190.2,1.2862]
[1741495141219,0.54799,2190.2,2190.1,3.2078]
[1741495145125,0.54802,2190.1,2190.0,3.2078]
[1741495152332,3.2078,2190.2,2189.8,1.8868]
[1741495152629,4.5778,2190.2,2189.7,3.2078]
[1741495152825,0.54809,2189.8,2189.7,3.2078]
[1741495154831,0.54808,2189.9,2189.7,3.75591]
[1741495155030,0.6495,2190.1,2189.7,3.75591]
[1741495155234,3.2078,2190.2,2189.7,3.2078]
[1741495155624,0.54802,2190.1,2189.9,0.54805]
[1741495155928,0.54802,2190.1,2190.0,4.4576]
[1741495156130,1.8348,2190.4,2190.0,5.0525]
[1741495156432,0.548,2190.2,2190.0,5.60054]
[1741495157032,0.548,2190.2,2190.0,5.0525]
[1741495157234,0.548,2190.2,2190.0,5.60054]
[1741495158027,0.548,2190.2,2190.0,5.0525]
[1741495159735,0.548,2190.2,2190.0,5.60053]
[1741495160532,0.548,2190.2,2190.0,5.0525]
[1741495160735,0.548,2190.2,2190.0,5.60053]
[1741495161736,0.548,2190.2,2190.0,5.0525]
[1741495161935,5.1728,2190.5,2190.0,5.60053]
[1741495162135,6.3756,2190.5,2190.0,5.0525]
[1741495162337,0.54801,2190.2,2190.0,5.0525]
[1741495162538,0.54801,2190.1,2190.0,5.0525]
[1741495163333,6.3756,2190.5,2190.0,5.0525]
[1741495163536,6.3756,2190.5,2190.0,5.60053]
[1741495163537,0.548,2190.2,2190.0,5.60053]
[1741495164925,6.3756,2190.5,2190.0,5.60053]
[1741495165140,0.54799,2190.2,2190.0,5.60053]
[1741495165336,4.4106,2190.5,2190.0,5.0525]
[1741495165540,0.54794,2190.4,2190.2,0.54798]
[1741495166032,0.54794,2190.4,2190.3,0.6206]
[1741495166441,3.75573,2190.5,2190.3,0.6206]
[1741495166631,3.75573,2190.5,2190.4,1.2243]
[1741495170941,3.2078,2190.5,2190.4,1.77224]
[1741495172349,3.2078,2190.5,2190.4,1.2243]
[1741495173235,3.75571,2190.5,2190.4,1.2243]
[1741495174953,3.2078,2190.5,2190.3,0.6206]
[1741495175149,0.54797,2190.3,2190.1,1.78611]
[1741495175351,0.54797,2190.3,2190.2,0.6542]
[1741495177559,3.2078,2190.5,2190.2,1.20218]
[1741495178149,0.54794,2190.4,2190.2,1.20218]
[1741495178550,3.2078,2190.5,2190.2,1.20218]
[1741495178751,0.54794,2190.4,2190.2,1.20218]
[1741495179157,0.54796,2190.3,2190.2,1.20218]